[Event "Late-Titled-Tuesday-Blitz-September-12-2023"]
[Site "Chess.com"]
[Date "2023.09.12"]
[Round "10"]
[White "Lennis93"]
[Black "kacprekt"]
[Result "1-0"]
[WhiteElo "2719"]
[BlackElo "2525"]
[TimeControl "180+1"]
[EndTime "15:50:01 PDT"]
[Termination "Lennis93 won by resignation"]

1. Nf3 {[%clk 0:03:00.9]} 1... g6 {[%clk 0:02:58.8]} 2. e4 {[%clk 0:03:00.6]}
2... Bg7 {[%clk 0:02:58.9]} 3. d4 {[%clk 0:03:01.2]} 3... d6 {[%clk 0:02:53.9]}
4. Nc3 {[%clk 0:03:00.8]} 4... a6 {[%clk 0:02:53.3]} 5. a4 {[%clk 0:02:59.7]}
5... Nc6 {[%clk 0:02:51.9]} 6. h3 {[%clk 0:02:59.1]} 6... Nf6 {[%clk 0:02:51.9]}
7. Be3 {[%clk 0:02:57.7]} 7... O-O {[%clk 0:02:48.6]} 8. Be2 {[%clk 0:02:54.5]}
8... e5 {[%clk 0:02:47.3]} 9. d5 {[%clk 0:02:49]} 9... Nb4 {[%clk 0:02:44]} 10.
g4 {[%clk 0:02:47.2]} 10... c6 {[%clk 0:02:41.3]} 11. a5 {[%clk 0:02:37.8]}
11... cxd5 {[%clk 0:02:38.7]} 12. Bb6 {[%clk 0:02:37.8]} 12... Qe7 {[%clk
0:02:33.5]} 13. exd5 {[%clk 0:02:37.8]} 13... e4 {[%clk 0:02:32.4]} 14. Nh2
{[%clk 0:02:20.6]} 14... Nd7 {[%clk 0:02:19.9]} 15. Ra4 {[%clk 0:02:08.9]} 15...
Nxb6 {[%clk 0:02:13]} 16. Rxb4 {[%clk 0:02:06.6]} 16... Nd7 {[%clk 0:02:08.9]}
17. Nxe4 {[%clk 0:02:05.8]} 17... f5 {[%clk 0:02:01.3]} 18. gxf5 {[%clk
0:02:05.7]} 18... gxf5 {[%clk 0:02:02.2]} 19. Nc3 {[%clk 0:01:42.7]} 19... Ne5
{[%clk 0:01:50.4]} 20. O-O {[%clk 0:01:26.7]} 20... f4 {[%clk 0:01:47.4]} 21.
Bg4 {[%clk 0:01:14.4]} 21... f3 {[%clk 0:01:34.6]} 22. Bxc8 {[%clk 0:01:09.5]}
22... Raxc8 {[%clk 0:01:34]} 23. Kh1 {[%clk 0:01:09.3]} 23... Nc4 {[%clk
0:01:20.5]} 24. Rg1 {[%clk 0:01:06.5]} 24... Kh8 {[%clk 0:01:20]} 25. Ng4 {[%clk
0:00:46.1]} 25... Nxb2 {[%clk 0:01:18]} 26. Rxb2 {[%clk 0:00:45.1]} 26... Rxc3
{[%clk 0:01:16.3]} 27. Rb3 {[%clk 0:00:37.6]} 27... Qe2 {[%clk 0:01:12.1]} 28.
Re1 {[%clk 0:00:20.4]} 28... Qxc2 {[%clk 0:01:05.2]} 29. Qxc2 {[%clk 0:00:19.8]}
29... Rxc2 {[%clk 0:01:06.1]} 30. Rxb7 {[%clk 0:00:19.8]} 30... h5 {[%clk
0:01:03.8]} 31. Ree7 {[%clk 0:00:20.3]} 31... Rg8 {[%clk 0:00:08.3]} 32. Nf6
{[%clk 0:00:19.8]} 32... Rxf2 {[%clk 0:00:08.2]} 33. Nxg8 {[%clk 0:00:17.5]}
33... Rf1+ {[%clk 0:00:08.8]} 34. Kh2 {[%clk 0:00:17.9]} 34... Be5+ {[%clk
0:00:09.7]} 35. Rxe5 {[%clk 0:00:18]} 35... dxe5 {[%clk 0:00:10.6]} 36. Nf6
{[%clk 0:00:18.4]} 36... Rf2+ {[%clk 0:00:05.8]} 37. Kg3 {[%clk 0:00:18.6]}
37... Rg2+ {[%clk 0:00:05.6]} 38. Kxf3 {[%clk 0:00:18.9]} 38... Rg7 {[%clk
0:00:05.9]} 39. Rb8+ {[%clk 0:00:17.8]} 1-0

[Event "Late-Titled-Tuesday-Blitz-September-12-2023"]
[Site "Chess.com"]
[Date "2023.09.12"]
[Round "10"]
[White "chessajedrezz2020"]
[Black "talaicito"]
[Result "1-0"]
[WhiteElo "2699"]
[BlackElo "2185"]
[TimeControl "180+1"]
[EndTime "15:50:06 PDT"]
[Termination "chessajedrezz2020 won on time"]

1. Nf3 {[%clk 0:03:00.9]} 1... c5 {[%clk 0:03:00.5]} 2. g3 {[%clk 0:02:58.1]}
2... Nc6 {[%clk 0:03:00.2]} 3. Bg2 {[%clk 0:02:57.5]} 3... g6 {[%clk 0:02:58.3]}
4. O-O {[%clk 0:02:56.8]} 4... Bg7 {[%clk 0:02:59.2]} 5. c4 {[%clk 0:02:44.3]}
5... d6 {[%clk 0:02:58.9]} 6. Nc3 {[%clk 0:02:44.1]} 6... e5 {[%clk 0:02:59.3]}
7. e3 {[%clk 0:02:40.1]} 7... Nge7 {[%clk 0:02:58.8]} 8. d4 {[%clk 0:02:36.6]}
8... O-O {[%clk 0:02:54.7]} 9. dxc5 {[%clk 0:02:34.9]} 9... dxc5 {[%clk
0:02:54]} 10. Nd5 {[%clk 0:02:33.6]} 10... Be6 {[%clk 0:02:50.3]} 11. Ng5 {[%clk
0:02:29.3]} 11... Bc8 {[%clk 0:02:43.1]} 12. Ne4 {[%clk 0:02:23.2]} 12... b6
{[%clk 0:02:37.9]} 13. Nef6+ {[%clk 0:02:13.7]} 13... Bxf6 {[%clk 0:02:23.2]}
14. Nxf6+ {[%clk 0:02:13.1]} 14... Kg7 {[%clk 0:02:22.1]} 15. Nd5 {[%clk
0:02:07.9]} 15... Bb7 {[%clk 0:02:01.1]} 16. b3 {[%clk 0:01:58.9]} 16... Qd6
{[%clk 0:01:54.2]} 17. Bb2 {[%clk 0:01:45.5]} 17... f6 {[%clk 0:01:48.6]} 18. f4
{[%clk 0:00:39.4]} 18... Rad8 {[%clk 0:01:41.1]} 19. Qe1 {[%clk 0:00:30.7]}
19... Nxd5 {[%clk 0:01:29.7]} 20. Bxd5 {[%clk 0:00:23.4]} 20... Qe7 {[%clk
0:01:21.6]} 21. Qc3 {[%clk 0:00:20.5]} 21... exf4 {[%clk 0:01:05.3]} 22. exf4
{[%clk 0:00:19.9]} 22... Nd4 {[%clk 0:01:02.2]} 23. Rae1 {[%clk 0:00:17.7]}
23... Qd7 {[%clk 0:00:56.5]} 24. Bxb7 {[%clk 0:00:16.1]} 24... Qxb7 {[%clk
0:00:56.4]} 25. Qe3 {[%clk 0:00:13.5]} 25... Rfe8 {[%clk 0:00:50.7]} 26. Qxe8
{[%clk 0:00:09.8]} 26... Rxe8 {[%clk 0:00:51.6]} 27. Rxe8 {[%clk 0:00:09.9]}
27... Nf3+ {[%clk 0:00:48.5]} 28. Kf2 {[%clk 0:00:10.1]} 28... Nd2 {[%clk
0:00:41.3]} 29. Rfe1 {[%clk 0:00:08.6]} 29... Qf3+ {[%clk 0:00:28.4]} 30. Kg1
{[%clk 0:00:08.8]} 30... Qd3 {[%clk 0:00:17.6]} 31. R8e7+ {[%clk 0:00:08.7]}
31... Kh6 {[%clk 0:00:15.8]} 32. R7e3 {[%clk 0:00:07.7]} 32... Nf3+ {[%clk
0:00:09.7]} 33. Rxf3 {[%clk 0:00:05.1]} 33... Qxf3 {[%clk 0:00:09]} 34. Bxf6
{[%clk 0:00:06]} 34... Qd3 {[%clk 0:00:05.5]} 35. Kf2 {[%clk 0:00:05.2]} 35...
Kh5 {[%clk 0:00:03.6]} 36. h3 {[%clk 0:00:05]} 36... Qd2+ {[%clk 0:00:02.1]} 37.
Re2 {[%clk 0:00:05.4]} 1-0

[Event "Late-Titled-Tuesday-Blitz-September-12-2023"]
[Site "Chess.com"]
[Date "2023.09.12"]
[Round "10"]
[White "Eloist"]
[Black "karinachess1"]
[Result "0-1"]
[WhiteElo "2495"]
[BlackElo "2617"]
[TimeControl "180+1"]
[EndTime "15:50:07 PDT"]
[Termination "karinachess1 won on time"]

1. e4 {[%clk 0:03:00.9]} 1... e5 {[%clk 0:02:59.8]} 2. Bc4 {[%clk 0:03:00.4]}
2... Nf6 {[%clk 0:02:59.4]} 3. d3 {[%clk 0:03:00.3]} 3... c6 {[%clk 0:02:50.7]}
4. Nf3 {[%clk 0:03:00.2]} 4... Be7 {[%clk 0:02:50.7]} 5. O-O {[%clk 0:02:59.5]}
5... d6 {[%clk 0:02:51]} 6. c3 {[%clk 0:02:58.9]} 6... O-O {[%clk 0:02:51.1]} 7.
Bb3 {[%clk 0:02:58.9]} 7... Nbd7 {[%clk 0:02:51.2]} 8. Nbd2 {[%clk 0:02:59]}
8... Nc5 {[%clk 0:02:51.4]} 9. Bc2 {[%clk 0:02:59.3]} 9... Bg4 {[%clk
0:02:51.1]} 10. h3 {[%clk 0:02:59.4]} 10... Bh5 {[%clk 0:02:50.8]} 11. Re1
{[%clk 0:02:59.5]} 11... Ne6 {[%clk 0:02:48.6]} 12. Nf1 {[%clk 0:02:59.5]} 12...
Bxf3 {[%clk 0:02:43.7]} 13. Qxf3 {[%clk 0:02:58.9]} 13... g6 {[%clk 0:02:40.6]}
14. Bh6 {[%clk 0:02:57.6]} 14... Ng7 {[%clk 0:02:27.6]} 15. Rad1 {[%clk
0:02:55]} 15... Nfh5 {[%clk 0:02:19]} 16. d4 {[%clk 0:02:49.1]} 16... exd4
{[%clk 0:01:59]} 17. cxd4 {[%clk 0:02:46.8]} 17... Bg5 {[%clk 0:01:57.3]} 18.
Bxg5 {[%clk 0:02:42.9]} 18... Qxg5 {[%clk 0:01:58.2]} 19. Qg4 {[%clk 0:02:28.9]}
19... Qe7 {[%clk 0:01:27.4]} 20. f4 {[%clk 0:02:23.6]} 20... Nf6 {[%clk
0:01:21]} 21. Qf3 {[%clk 0:02:22.8]} 21... Rfe8 {[%clk 0:01:07.3]} 22. g4 {[%clk
0:02:17.9]} 22... d5 {[%clk 0:01:01.7]} 23. e5 {[%clk 0:02:14.6]} 23... Ne4
{[%clk 0:01:01.7]} 24. Bxe4 {[%clk 0:02:14]} 24... dxe4 {[%clk 0:01:02.6]} 25.
Rxe4 {[%clk 0:01:54]} 25... f5 {[%clk 0:00:58.9]} 26. Ree1 {[%clk 0:01:43.6]}
26... fxg4 {[%clk 0:00:59.2]} 27. hxg4 {[%clk 0:01:42.4]} 27... Rf8 {[%clk
0:00:59.9]} 28. Ng3 {[%clk 0:01:22.7]} 28... Ne6 {[%clk 0:00:53.6]} 29. f5
{[%clk 0:01:08.5]} 29... Qh4 {[%clk 0:00:48.6]} 30. Qb3 {[%clk 0:00:56.3]} 30...
Rae8 {[%clk 0:00:40]} 31. fxe6 {[%clk 0:00:28.5]} 31... Rf4 {[%clk 0:00:39.7]}
32. Kg2 {[%clk 0:00:20.5]} 32... Qxg4 {[%clk 0:00:31.6]} 33. e7+ {[%clk
0:00:14.2]} 33... Kg7 {[%clk 0:00:31.1]} 34. Rd3 {[%clk 0:00:11.9]} 34... Rxe7
{[%clk 0:00:27.7]} 35. Rf3 {[%clk 0:00:11.9]} 35... g5 {[%clk 0:00:25.2]} 36.
Qe3 {[%clk 0:00:09.8]} 36... Ref7 {[%clk 0:00:22.8]} 37. Ref1 {[%clk 0:00:09.9]}
37... h5 {[%clk 0:00:20.6]} 38. Kh2 {[%clk 0:00:07.1]} 38... Rxf3 {[%clk
0:00:15.6]} 39. Rxf3 {[%clk 0:00:06.6]} 39... Rxf3 {[%clk 0:00:16.5]} 40. Qg1
{[%clk 0:00:02.5]} 40... Qh4+ {[%clk 0:00:16.4]} 0-1

[Event "Late-Titled-Tuesday-Blitz-September-12-2023"]
[Site "Chess.com"]
[Date "2023.09.12"]
[Round "10"]
[White "ArturoCaceres"]
[Black "egnfanclub"]
[Result "1-0"]
[WhiteElo "2477"]
[BlackElo "2335"]
[TimeControl "180+1"]
[EndTime "15:50:18 PDT"]
[Termination "ArturoCaceres won on time"]

1. e4 {[%clk 0:02:50.4]} 1... e5 {[%clk 0:02:59]} 2. Bc4 {[%clk 0:02:50.3]} 2...
Nf6 {[%clk 0:02:57.6]} 3. Nc3 {[%clk 0:02:50.8]} 3... Nxe4 {[%clk 0:02:57]} 4.
Nxe4 {[%clk 0:02:43.4]} 4... d5 {[%clk 0:02:56.7]} 5. Bd3 {[%clk 0:02:43.7]}
5... dxe4 {[%clk 0:02:54.7]} 6. Bxe4 {[%clk 0:02:44.6]} 6... f5 {[%clk
0:02:37.5]} 7. Bd3 {[%clk 0:02:44.6]} 7... Be6 {[%clk 0:02:28.9]} 8. b3 {[%clk
0:02:27.8]} 8... Qd5 {[%clk 0:02:08.4]} 9. Bc4 {[%clk 0:02:02.8]} 9... Qxg2
{[%clk 0:02:04.1]} 10. Bxe6 {[%clk 0:02:03]} 10... Qxh1 {[%clk 0:02:03.9]} 11.
Kf1 {[%clk 0:02:03.7]} 11... Qxh2 {[%clk 0:01:49.7]} 12. Qf3 {[%clk 0:01:55.6]}
12... Bc5 {[%clk 0:01:37.4]} 13. d4 {[%clk 0:01:53.6]} 13... Bxd4 {[%clk
0:01:36.5]} 14. c3 {[%clk 0:01:54.1]} 14... Bc5 {[%clk 0:01:32]} 15. Bg5 {[%clk
0:01:26]} 15... Nc6 {[%clk 0:01:13.7]} 16. Qxf5 {[%clk 0:01:19.8]} 16... Qxf2+
{[%clk 0:00:36.9]} 17. Qxf2 {[%clk 0:01:19.3]} 17... Bxf2 {[%clk 0:00:37.8]} 18.
Kxf2 {[%clk 0:01:20]} 18... h6 {[%clk 0:00:36.4]} 19. Be3 {[%clk 0:01:15.3]}
19... Ke7 {[%clk 0:00:36.9]} 20. Bd5 {[%clk 0:01:15.3]} 20... Rhf8+ {[%clk
0:00:36.1]} 21. Ke2 {[%clk 0:01:15.5]} 21... Kd6 {[%clk 0:00:36.4]} 22. Rd1
{[%clk 0:01:15.2]} 22... Rad8 {[%clk 0:00:30]} 23. b4 {[%clk 0:01:15.1]} 23...
b6 {[%clk 0:00:28.1]} 24. Be4+ {[%clk 0:01:06.9]} 24... Ke7 {[%clk 0:00:18.5]}
25. Bxc6 {[%clk 0:01:05.7]} 25... Rxd1 {[%clk 0:00:18.1]} 26. Kxd1 {[%clk
0:01:06.6]} 26... Rf1+ {[%clk 0:00:17.3]} 27. Ke2 {[%clk 0:00:59.1]} 27... Ra1
{[%clk 0:00:17.8]} 28. Bd5 {[%clk 0:00:59.5]} 28... Kd6 {[%clk 0:00:16.8]} 29.
Bb3 {[%clk 0:00:59.2]} 29... g5 {[%clk 0:00:17.1]} 30. Nf3 {[%clk 0:00:57.5]}
30... c5 {[%clk 0:00:16.7]} 31. Nd2 {[%clk 0:00:57.2]} 31... cxb4 {[%clk
0:00:12.8]} 32. cxb4 {[%clk 0:00:56.7]} 32... Rh1 {[%clk 0:00:12.3]} 33. Ne4+
{[%clk 0:00:56.5]} 33... Ke7 {[%clk 0:00:11.6]} 34. Ng3 {[%clk 0:00:53.4]} 34...
Rh2+ {[%clk 0:00:11]} 35. Kf3 {[%clk 0:00:53]} 35... Kf6 {[%clk 0:00:11]} 36.
Ne4+ {[%clk 0:00:52.3]} 36... Ke7 {[%clk 0:00:11.2]} 37. Bf2 {[%clk 0:00:51.4]}
37... Rh3+ {[%clk 0:00:08.9]} 38. Ng3 {[%clk 0:00:48.5]} 38... h5 {[%clk
0:00:07.7]} 39. Kg2 {[%clk 0:00:48.7]} 39... g4 {[%clk 0:00:06.6]} 40. Bd1
{[%clk 0:00:32.2]} 40... Kf6 {[%clk 0:00:06.5]} 41. Bc2 {[%clk 0:00:27.8]} 41...
Kg5 {[%clk 0:00:06]} 42. Be3+ {[%clk 0:00:27.6]} 42... Kf6 {[%clk 0:00:04.3]}
43. Bd1 {[%clk 0:00:19.3]} 43... h4 {[%clk 0:00:04.7]} 44. Nf1 {[%clk
0:00:15.9]} 1-0

[Event "Late-Titled-Tuesday-Blitz-September-12-2023"]
[Site "Chess.com"]
[Date "2023.09.12"]
[Round "10"]
[White "IMSlavin"]
[Black "S-Fazulyanov"]
[Result "0-1"]
[WhiteElo "2244"]
[BlackElo "2468"]
[TimeControl "180+1"]
[EndTime "15:50:20 PDT"]
[Termination "S-Fazulyanov won on time"]

1. e4 {[%clk 0:03:00]} 1... c5 {[%clk 0:03:00.3]} 2. g3 {[%clk 0:03:00.1]} 2...
d5 {[%clk 0:03:00]} 3. exd5 {[%clk 0:03:00.1]} 3... Qxd5 {[%clk 0:03:00.1]} 4.
Qf3 {[%clk 0:03:01]} 4... Nf6 {[%clk 0:02:57.2]} 5. Nc3 {[%clk 0:03:00.2]} 5...
Qxf3 {[%clk 0:02:57.1]} 6. Nxf3 {[%clk 0:03:00.8]} 6... Bd7 {[%clk 0:02:50.3]}
7. Bg2 {[%clk 0:02:55.7]} 7... Bc6 {[%clk 0:02:49.4]} 8. O-O {[%clk 0:02:52.2]}
8... Nbd7 {[%clk 0:02:49.4]} 9. d4 {[%clk 0:02:34.7]} 9... e6 {[%clk 0:02:43.6]}
10. Be3 {[%clk 0:02:31.7]} 10... Ng4 {[%clk 0:02:37.5]} 11. Bd2 {[%clk
0:02:21.2]} 11... cxd4 {[%clk 0:02:18.1]} 12. Nxd4 {[%clk 0:02:19.9]} 12... Bxg2
{[%clk 0:02:18.9]} 13. Kxg2 {[%clk 0:02:19.8]} 13... Bc5 {[%clk 0:02:19.2]} 14.
Ndb5 {[%clk 0:02:07.8]} 14... Ke7 {[%clk 0:02:15.5]} 15. Ne4 {[%clk 0:02:06.5]}
15... a6 {[%clk 0:02:09.1]} 16. Nxc5 {[%clk 0:02:05.7]} 16... Nxc5 {[%clk
0:02:08.4]} 17. Bb4 {[%clk 0:02:02.1]} 17... Rhc8 {[%clk 0:02:07.2]} 18. Nd4
{[%clk 0:01:39.4]} 18... Ke8 {[%clk 0:02:04.2]} 19. b3 {[%clk 0:01:23.5]} 19...
Nf6 {[%clk 0:01:48.8]} 20. c4 {[%clk 0:01:15.7]} 20... Nd3 {[%clk 0:01:40]} 21.
Ba3 {[%clk 0:01:07]} 21... Rd8 {[%clk 0:01:00.1]} 22. Nc2 {[%clk 0:00:58.3]}
22... Ne4 {[%clk 0:00:57.9]} 23. Ne3 {[%clk 0:00:34.4]} 23... f5 {[%clk
0:00:36.6]} 24. f3 {[%clk 0:00:23.8]} 24... Nf6 {[%clk 0:00:20.4]} 25. Rad1
{[%clk 0:00:14.8]} 25... f4 {[%clk 0:00:18.3]} 26. Nc2 {[%clk 0:00:10.9]} 26...
g5 {[%clk 0:00:15.2]} 27. Nb4 {[%clk 0:00:07.3]} 27... Nc5 {[%clk 0:00:09.8]}
28. Nc2 {[%clk 0:00:05.4]} 28... Nd3 {[%clk 0:00:09.2]} 29. Nb4 {[%clk
0:00:05.6]} 29... Nxb4 {[%clk 0:00:07.8]} 30. Bxb4 {[%clk 0:00:05.6]} 30... Kf7
{[%clk 0:00:06.6]} 31. Bc3 {[%clk 0:00:06]} 31... Nd7 {[%clk 0:00:03.1]} 32.
Rfe1 {[%clk 0:00:04.1]} 32... Nc5 {[%clk 0:00:03.5]} 33. Bd4 {[%clk 0:00:02]}
33... Nd7 {[%clk 0:00:02.7]} 0-1

[Event "Late-Titled-Tuesday-Blitz-September-12-2023"]
[Site "Chess.com"]
[Date "2023.09.12"]
[Round "10"]
[White "Atanejhad"]
[Black "PapaieDudu"]
[Result "0-1"]
[WhiteElo "2418"]
[BlackElo "2331"]
[TimeControl "180+1"]
[EndTime "15:50:21 PDT"]
[Termination "PapaieDudu won by resignation"]

1. d4 {[%clk 0:03:00.9]} 1... d5 {[%clk 0:03:00]} 2. c4 {[%clk 0:02:59.4]} 2...
e6 {[%clk 0:03:00.3]} 3. Nc3 {[%clk 0:02:59.5]} 3... Nf6 {[%clk 0:03:00.9]} 4.
cxd5 {[%clk 0:02:59.6]} 4... exd5 {[%clk 0:03:01.8]} 5. Bg5 {[%clk 0:02:59]}
5... Be7 {[%clk 0:03:00.3]} 6. e3 {[%clk 0:02:59.6]} 6... Nbd7 {[%clk
0:03:00.4]} 7. Qc2 {[%clk 0:02:59.1]} 7... h6 {[%clk 0:02:58.1]} 8. Bh4 {[%clk
0:02:57.9]} 8... c6 {[%clk 0:02:56.9]} 9. Bd3 {[%clk 0:02:58.2]} 9... Nh5 {[%clk
0:02:56.5]} 10. Bxe7 {[%clk 0:02:56.4]} 10... Qxe7 {[%clk 0:02:57.4]} 11. Nge2
{[%clk 0:02:55.7]} 11... O-O {[%clk 0:02:57.4]} 12. O-O-O {[%clk 0:02:53.5]}
12... b5 {[%clk 0:02:52.5]} 13. g4 {[%clk 0:02:42.6]} 13... Nhf6 {[%clk
0:02:52.1]} 14. Rdg1 {[%clk 0:02:40.2]} 14... a5 {[%clk 0:02:51.3]} 15. h4
{[%clk 0:02:26.8]} 15... b4 {[%clk 0:02:21.4]} 16. Nd1 {[%clk 0:02:23.4]} 16...
Ne4 {[%clk 0:02:16.7]} 17. Nf4 {[%clk 0:02:06.6]} 17... a4 {[%clk 0:02:02]} 18.
Bxe4 {[%clk 0:01:12.2]} 18... dxe4 {[%clk 0:02:01.5]} 19. g5 {[%clk 0:01:08.6]}
19... b3 {[%clk 0:01:47.4]} 20. axb3 {[%clk 0:01:09.5]} 20... axb3 {[%clk
0:01:41.5]} 21. Qxb3 {[%clk 0:01:09.4]} 21... hxg5 {[%clk 0:01:02.8]} 22. hxg5
{[%clk 0:01:06.2]} 22... Rb8 {[%clk 0:01:02.7]} 23. Qc2 {[%clk 0:01:02.7]} 23...
Qd6 {[%clk 0:00:48.4]} 24. Qxe4 {[%clk 0:00:55.2]} 24... g6 {[%clk 0:00:35.3]}
25. Rh6 {[%clk 0:00:53.5]} 25... Kg7 {[%clk 0:00:22.6]} 26. Rgh1 {[%clk
0:00:51.3]} 26... Rg8 {[%clk 0:00:23.1]} 27. Rh7+ {[%clk 0:00:21.3]} 27... Kf8
{[%clk 0:00:23.3]} 28. Rh8 {[%clk 0:00:17.8]} 28... c5 {[%clk 0:00:15.3]} 29.
Rxg8+ {[%clk 0:00:17]} 29... Kxg8 {[%clk 0:00:16.2]} 30. Qe8+ {[%clk 0:00:16.6]}
30... Nf8 {[%clk 0:00:15.1]} 31. dxc5 {[%clk 0:00:13.8]} 31... Qxc5+ {[%clk
0:00:14.8]} 32. Nc3 {[%clk 0:00:14.5]} 32... Qxg5 {[%clk 0:00:11.3]} 33. Rh8+
{[%clk 0:00:14.2]} 33... Kxh8 {[%clk 0:00:10.5]} 34. Qxf8+ {[%clk 0:00:14.9]}
34... Kh7 {[%clk 0:00:11.1]} 35. Qxf7+ {[%clk 0:00:15.6]} 35... Kh6 {[%clk
0:00:11.4]} 36. Qf8+ {[%clk 0:00:15.4]} 36... Kh7 {[%clk 0:00:11.8]} 37. Ncd5
{[%clk 0:00:13.3]} 37... Qg1+ {[%clk 0:00:11.6]} 38. Kd2 {[%clk 0:00:12.2]}
38... Qxf2+ {[%clk 0:00:11.9]} 39. Kd3 {[%clk 0:00:12.9]} 39... Bf5+ {[%clk
0:00:11.9]} 40. Kd4 {[%clk 0:00:12.5]} 40... Rxf8 {[%clk 0:00:12.2]} 41. Ne7
{[%clk 0:00:10.9]} 41... Qxb2+ {[%clk 0:00:12.6]} 42. Kd5 {[%clk 0:00:10.9]}
42... Rd8+ {[%clk 0:00:13]} 43. Kc6 {[%clk 0:00:09.9]} 43... Qf6+ {[%clk
0:00:12.4]} 44. Kc7 {[%clk 0:00:07.5]} 44... Qxe7+ {[%clk 0:00:12.9]} 0-1

[Event "Late-Titled-Tuesday-Blitz-September-12-2023"]
[Site "Chess.com"]
[Date "2023.09.12"]
[Round "10"]
[White "Zhigalko_Sergei"]
[Black "DeTimmerman"]
[Result "1-0"]
[WhiteElo "2867"]
[BlackElo "2638"]
[TimeControl "180+1"]
[EndTime "15:50:24 PDT"]
[Termination "Zhigalko_Sergei won by resignation"]

1. e4 {[%clk 0:03:00.9]} 1... e5 {[%clk 0:02:58.6]} 2. Nf3 {[%clk 0:03:01.1]}
2... Nc6 {[%clk 0:02:57.8]} 3. Bc4 {[%clk 0:03:01.4]} 3... Nf6 {[%clk
0:02:58.2]} 4. d3 {[%clk 0:03:01.3]} 4... Be7 {[%clk 0:02:58.8]} 5. O-O {[%clk
0:03:01.4]} 5... O-O {[%clk 0:02:59.7]} 6. Nbd2 {[%clk 0:03:01.9]} 6... d6
{[%clk 0:03:00]} 7. c3 {[%clk 0:03:01.6]} 7... Kh8 {[%clk 0:03:00.4]} 8. Re1
{[%clk 0:03:00.5]} 8... Ng8 {[%clk 0:03:00.7]} 9. d4 {[%clk 0:03:00.8]} 9... f5
{[%clk 0:02:57.7]} 10. dxe5 {[%clk 0:02:59.6]} 10... fxe4 {[%clk 0:02:57.9]} 11.
Nxe4 {[%clk 0:02:56.4]} 11... Bg4 {[%clk 0:02:25]} 12. exd6 {[%clk 0:02:33.5]}
12... cxd6 {[%clk 0:02:24.3]} 13. Be2 {[%clk 0:02:09]} 13... d5 {[%clk
0:02:22.9]} 14. Ned2 {[%clk 0:01:45.7]} 14... Bc5 {[%clk 0:02:22.1]} 15. Nb3
{[%clk 0:01:43.3]} 15... Bb6 {[%clk 0:02:17.6]} 16. h3 {[%clk 0:01:30.3]} 16...
Bh5 {[%clk 0:02:12.4]} 17. Nfd4 {[%clk 0:01:29.9]} 17... Bg6 {[%clk 0:01:56.3]}
18. Bd3 {[%clk 0:01:17.4]} 18... Qh4 {[%clk 0:01:55.3]} 19. Be3 {[%clk
0:01:14.9]} 19... Bxd3 {[%clk 0:01:49.2]} 20. Qxd3 {[%clk 0:01:14]} 20... Nf6
{[%clk 0:01:50.1]} 21. Nf5 {[%clk 0:01:07.1]} 21... Qh5 {[%clk 0:01:49.2]} 22.
Bxb6 {[%clk 0:01:04.2]} 22... axb6 {[%clk 0:01:46]} 23. Ng3 {[%clk 0:00:51.3]}
23... Qh4 {[%clk 0:01:45.8]} 24. a3 {[%clk 0:00:36.9]} 24... Ne4 {[%clk
0:01:30.7]} 25. Nxe4 {[%clk 0:00:28.1]} 25... dxe4 {[%clk 0:01:31.6]} 26. Qg3
{[%clk 0:00:25.7]} 26... Qh5 {[%clk 0:01:16.8]} 27. Rxe4 {[%clk 0:00:19.6]}
27... Qd5 {[%clk 0:01:16.3]} 28. Rg4 {[%clk 0:00:08]} 28... Qxb3 {[%clk
0:01:16.3]} 29. Rxg7 {[%clk 0:00:08.3]} 29... Rg8 {[%clk 0:01:16.9]} 30. Rg4
{[%clk 0:00:05.2]} 30... Qe6 {[%clk 0:01:15.2]} 31. Rd1 {[%clk 0:00:04.8]} 31...
Rxg4 {[%clk 0:01:14.7]} 32. hxg4 {[%clk 0:00:05.7]} 32... Rg8 {[%clk 0:01:14.4]}
33. f3 {[%clk 0:00:06.1]} 33... Re8 {[%clk 0:01:10]} 34. Qf2 {[%clk 0:00:04.8]}
34... Ne5 {[%clk 0:01:02.5]} 35. Qd4 {[%clk 0:00:04.5]} 35... Kg8 {[%clk
0:01:02.3]} 36. Qd5 {[%clk 0:00:04.2]} 36... Nc4 {[%clk 0:00:58.7]} 37. Qxe6+
{[%clk 0:00:02.7]} 37... Rxe6 {[%clk 0:00:59.6]} 38. Rd8+ {[%clk 0:00:02.5]}
38... Kf7 {[%clk 0:00:59.4]} 39. Rd7+ {[%clk 0:00:02.4]} 39... Re7 {[%clk
0:00:59.9]} 40. Rd4 {[%clk 0:00:02.7]} 40... Nxb2 {[%clk 0:00:59.9]} 41. Rb4
{[%clk 0:00:03.3]} 41... Nd1 {[%clk 0:00:59.3]} 42. c4 {[%clk 0:00:03.3]} 42...
Ne3 {[%clk 0:00:57]} 43. Rxb6 {[%clk 0:00:02.7]} 43... Nxc4 {[%clk 0:00:56.9]}
44. Rb3 {[%clk 0:00:03]} 44... b6 {[%clk 0:00:45.5]} 45. Kh2 {[%clk 0:00:03.3]}
45... Re3 {[%clk 0:00:43]} 46. Rb4 {[%clk 0:00:03.8]} 46... Rc3 {[%clk
0:00:42.9]} 47. Kg3 {[%clk 0:00:03.6]} 47... Ke6 {[%clk 0:00:35.5]} 48. a4
{[%clk 0:00:03.7]} 48... Kd5 {[%clk 0:00:28.9]} 49. Rb5+ {[%clk 0:00:03.8]}
49... Kc6 {[%clk 0:00:28.2]} 50. Rh5 {[%clk 0:00:04.6]} 50... Rc2 {[%clk
0:00:26.1]} 51. Rh6+ {[%clk 0:00:02.7]} 51... Kc5 {[%clk 0:00:26.1]} 52. Rxh7
{[%clk 0:00:03.6]} 52... Ne3 {[%clk 0:00:26]} 53. Rc7+ {[%clk 0:00:03.7]} 1-0